fUST/lending_fUST_20240711
["ID","MTS","AMOUNT","RATE_DAILY","PERIOD"]
[331701982,1720662648822,-1443.01,0.00033424,7]
[331701983,1720662648834,-541.57,0.00033424,7]
[331701984,1720662648843,-679.86,0.00033424,7]
[331701985,1720662648852,-500.0,0.00033424,7]
[331701986,1720662648862,-2704.21,0.00033424,7]
[331701987,1720662648871,-893.82,0.00033424,7]
[331701988,1720662648880,-556.49,0.00033424,7]
[331701989,1720662648889,-6641.28,0.00033424,7]
[331701990,1720662648898,-500.0,0.00033424,7]
[331701991,1720662648909,-500.0,0.00033424,7]
[331701992,1720662648919,-504.55016843,0.00033424,7]
[331701993,1720662648929,-544.23823273,0.00033485,7]
[331701994,1720662648939,-131685.35689001,0.000335,2]
[331702000,1720663645137,-16498.95391324,0.00020896,2]
[331702001,1720663645157,-2281.8649205,0.00020996,2]
[331702002,1720663645177,-180.541926,0.00021096,2]
[331702003,1720663645197,-408.070339,0.00021096,2]
[331702004,1720663645219,-260.698669,0.00022087,2]
[331702005,1720663645239,-300.0,0.00022787,2]
[331702006,1720663645260,-7851.2667397,0.00022788,2]
[331702007,1720663645280,-3000.0,0.00023,2]
[331702008,1720663645299,-259.34548774,0.00023684,2]
[331702009,1720663645322,-5506.02802493,0.00023773,2]
[331702010,1720663648114,-3704.39798387,0.00023773,2]
[331702011,1720663650097,-468.99602621,0.00023773,2]
[331702015,1720663803767,4805.61126585,0.00022941,2]
[331702016,1720663815587,166.6666665,0.00023134,2]
[331702018,1720663830270,154.73154765,0.00022941,2]
[331702039,1720663833873,-170.86914236,0.00023769,2]
[331702123,1720663839392,-129.13085764,0.00023769,2]
[331702125,1720663839405,-300.0,0.00023769,2]
[331702126,1720663839414,-17540.9247578,0.0002377,2]
[331702127,1720663839425,-15220.57796499,0.00023773,2]
[331702128,1720663839434,-428.44271624,0.00023773,2]
[331702129,1720663839444,-2000.0,0.00023773,2]
[331702130,1720663839455,-1212.69494088,0.00023784,2]
[331702131,1720663839465,-3756.7091814,0.00023884,2]
[331702132,1720663839476,-250.0,0.00023979,2]
[331702133,1720663839487,-160.445735,0.00024707,2]
[331702134,1720663839498,-2000.0,0.00025401,2]
[331702135,1720663839507,-52150.85185038,0.00025501,2]
[331702136,1720663839517,-172.89699184,0.00025682,2]
[331702137,1720663839527,-4676.36,0.00025849,3]
[331702138,1720663839537,-2942.75,0.00025859,3]
[331702139,1720663839547,-5611.63,0.00025859,3]
[331702140,1720663839557,-30000.0,0.00025869,2]
[331702141,1720663839567,-6189.70246107,0.00026049,2]
[331702142,1720663839577,-420.0,0.00026146,2]
[331702143,1720663839587,-1212.69494088,0.00026173,2]
[331702144,1720663839597,-408.070339,0.00027195,2]
[331702145,1720663839606,-166.563049,0.00027397,120]
[331702146,1720663839616,-172.89699182,0.00027682,2]
[331702147,1720663839626,-6189.70246104,0.00027799,2]
[331702148,1720663839638,-1212.69494088,0.00028561,2]
[331702149,1720663839648,-1000.0,0.00029,2]
[331702150,1720663839658,-6189.70246104,0.0002955,2]
[331702151,1720663839668,-172.89699182,0.00029682,2]
[331702152,1720663839677,-8746.17118023,0.00029762,5]
[331702153,1720663839687,-72471.3673837,0.00029763,3]
[331702154,1720663839697,-324.29980365,0.00029781,2]
[331702155,1720663839709,-500.0,0.00029781,2]
[331702156,1720663839719,-500.0,0.00029781,2]
[331702157,1720663839729,-576.63692745,0.00029781,2]
[331702158,1720663839739,-223.95160845,0.00029781,2]
[331702159,1720663839749,-500.0,0.00029781,2]
[331702160,1720663839759,-282.21405407,0.00029781,2]
[331702161,1720663839769,-576.63692745,0.00029781,2]
[331702162,1720663839779,-513.18076042,0.00029781,2]
[331702163,1720663839789,-509.17876094,0.00029781,2]
[331702164,1720663839799,-576.63692745,0.00029781,2]
[331702165,1720663839809,-500.0,0.00029781,2]
[331702166,1720663839818,-576.63692745,0.00029781,2]
[331702167,1720663839828,-576.63692745,0.00029781,2]
[331702168,1720663839838,-576.63692745,0.00029781,2]
[331702169,1720663839847,-576.63692745,0.00029781,2]
[331702170,1720663839857,-576.63692745,0.00029781,2]
[331702171,1720663839867,-576.63692745,0.00029781,2]
[331702172,1720663839876,-576.63692745,0.00029781,2]
[331702173,1720663839887,-576.63692745,0.00029781,2]
[331702174,1720663839896,-576.63692745,0.00029781,2]
[331702175,1720663839906,-576.63692745,0.00029781,2]
[331702176,1720663839916,-576.63692745,0.00029781,2]
[331702177,1720663839926,-576.63692745,0.00029781,2]
[331702178,1720663839936,-576.63692745,0.00029781,2]
[331702179,1720663839946,-576.63692745,0.00029781,2]
[331702180,1720663839956,-576.63692745,0.00029781,2]
[331702181,1720663839966,-576.63692745,0.00029781,2]
[331702182,1720663839976,-576.63692745,0.00029781,2]
[331702183,1720663839986,-576.63692745,0.00029781,2]
[331702185,1720663839995,-576.63692745,0.00029781,2]
[331702186,1720663840006,-576.63692745,0.00029781,2]
[331702188,1720663840016,-576.63692745,0.00029781,2]
[331702189,1720663840026,-576.63692745,0.00029781,2]
[331702190,1720663840035,-576.63692745,0.00029781,2]
[331702191,1720663840046,-576.63692745,0.00029781,2]
[331702192,1720663840056,-576.63692745,0.00029781,2]
[331702193,1720663840067,-576.63692745,0.00029781,2]
[331702194,1720663840076,-576.63692745,0.00029781,2]
[331702195,1720663840086,-576.63692745,0.00029781,2]
[331702196,1720663840097,-576.63692745,0.00029781,2]
[331702197,1720663840108,-576.63692745,0.00029781,2]
[331702198,1720663840118,-576.63692745,0.00029781,2]
[331702199,1720663840128,-576.63692745,0.00029781,2]
[331702200,1720663840140,-576.63692745,0.00029781,2]
[331702201,1720663840150,-576.63692745,0.00029781,2]
[331702202,1720663840160,-576.63692745,0.00029781,2]
[331702203,1720663840170,-576.63692745,0.00029781,2]
[331702204,1720663840180,-576.63692745,0.00029781,2]
[331702205,1720663840190,-576.63692745,0.00029781,2]
[331702206,1720663840200,-576.63692745,0.00029781,2]
[331702207,1720663840210,-72471.3673837,0.00029783,3]
[331702208,1720663840220,-10588.8376518,0.00029803,2]
[331702209,1720663840231,-150.5,0.00029848,62]
[331702210,1720663840240,-150.5,0.00029858,62]
[331702211,1720663840251,-308.57307675,0.00029861,2]
[331702212,1720663840260,-72471.3673837,0.00029867,3]
[331702213,1720663840270,-150.5,0.00029868,62]
[331702214,1720663840280,-72471.3673837,0.00029869,3]
[331702215,1720663840291,-2128.85592131,0.00029879,2]
[331702216,1720663840301,-2138.8565937,0.00029903,2]
[331702217,1720663840311,-155.45465387,0.00029999,2]
[331702218,1720663840320,-170.51355908,0.0003,4]
[331702219,1720663840329,-292.0,0.0003,2]
[331702220,1720663840339,-150.0,0.000306,4]
[331702221,1720663840349,-150.60173835,0.00030695,2]
[331702222,1720663840359,-5293.69736034,0.00030816,2]
[331702223,1720663840368,-366.69138635,0.00030931,2]
[331702224,1720663840378,-1212.69494088,0.0003095,2]
[331702225,1720663840389,-6189.70246104,0.000313,2]
[331702226,1720663840398,-1406.0,0.0003151,2]
[331702227,1720663840407,-286.0,0.00031666,120]
[331702228,1720663840416,-248.851,0.00032299,2]
[331702229,1720663840426,-151.883,0.00032429,2]
[331702230,1720663840435,-211.742,0.00032429,2]
[331702232,1720663840445,-235.629,0.00032429,2]
[331702234,1720663840455,-150.0,0.00032429,2]
[331702236,1720663840465,-150.0,0.00032429,2]
[331702238,1720663840475,-207.66910432,0.00032588,2]
[331702241,1720663840485,-500.0,0.00032588,2]
[331702243,1720663840494,-500.0,0.00032588,2]
[331702245,1720663840503,-500.0,0.00032588,2]
[331702246,1720663840512,-500.0,0.00032588,2]
[331702247,1720663840521,-500.0,0.00032588,2]
[331702248,1720663840530,-203.39004271,0.00032588,2]
[331702249,1720663840539,-500.0,0.00032588,2]
[331702250,1720663840548,-500.0,0.00032588,2]
[331702251,1720663840558,-500.0,0.00032588,2]
[331702252,1720663840569,-500.0,0.00032588,2]
[331702253,1720663840578,-540.17985347,0.00032588,2]
[331702254,1720663840587,-345.15181733,0.00032588,2]
[331702255,1720663840597,-500.0,0.00032588,2]
[331702256,1720663840607,-500.0,0.00032588,2]
[331702257,1720663840616,-500.0,0.00032588,2]
[331702258,1720663840625,-500.0,0.00032588,2]
[331702259,1720663840636,-500.0,0.00032588,2]
[331702260,1720663840646,-500.0,0.00032588,2]
[331702261,1720663840656,-600.0,0.00032588,2]
[331702262,1720663840665,-72471.3673837,0.00032589,4]
[331702263,1720663840675,-20181.094081,0.00032599,5]
[331702265,1720663840722,-68706.905919,0.00032599,5]
[331702266,1720663840732,-500.0,0.00032876,7]
[331702268,1720663840741,-500.0,0.00032876,7]
[331702270,1720663840750,-500.0,0.00032876,7]
[331702271,1720663840759,-500.0,0.00032876,7]
[331702273,1720663840768,-500.0,0.00032876,7]
[331702275,1720663840778,-500.0,0.00032876,7]
[331702277,1720663840787,-508.66189471,0.00032876,7]
[331702279,1720663840796,-561.46,0.00032876,7]
[331702280,1720663840805,-500.0,0.00032876,7]
[331702282,1720663840814,-500.0,0.00032876,7]
[331702284,1720663840823,-609.85873627,0.00032876,7]
[331702286,1720663840832,-500.0,0.00032876,7]
[331702287,1720663840842,-500.0,0.00032876,7]
[331702289,1720663840851,-500.0,0.00032876,7]
[331702290,1720663840860,-542.31,0.00032876,7]
[331702291,1720663840870,-500.0,0.00032876,7]
[331702292,1720663840880,-500.0,0.00032876,7]
[331702293,1720663840890,-635.8700441,0.00032876,7]
[331702294,1720663840900,-500.0,0.00032876,7]
[331702295,1720663840910,-509.38177595,0.00032876,7]
[331702296,1720663840920,-500.0,0.00032876,2]
[331702297,1720663840930,-500.0,0.00032876,7]
[331702298,1720663840939,-500.0,0.00032876,7]
[331702299,1720663840950,-500.0,0.00032876,7]
[331702300,1720663840959,-622.93318735,0.00032876,7]
[331702301,1720663840969,-796.07,0.00032876,7]
[331702302,1720663840979,-663.8,0.00032876,7]
[331702303,1720663840988,-500.0,0.00032876,7]
[331702304,1720663840998,-1500.0,0.00032876,7]
[331702305,1720663841008,-500.0,0.00032876,7]
[331702306,1720663841017,-991.21,0.00032876,7]
[331702307,1720663841026,-878.44,0.00032876,7]
[331702308,1720663841036,-1559.3,0.00032876,7]
[331702309,1720663841045,-500.0,0.00032876,7]
[331702310,1720663841055,-3721.14,0.00032876,7]
[331702311,1720663841064,-531.09,0.00032876,7]
[331702312,1720663841074,-500.0,0.00032876,7]
[331702313,1720663841083,-591.11,0.00032876,7]
[331702314,1720663841092,-500.0,0.00032876,7]
[331702315,1720663841208,-550.16,0.00032876,7]
[331702316,1720663841219,-500.0,0.00032876,7]
[331702317,1720663841228,-500.0,0.00032876,7]
[331702318,1720663841237,-787.63,0.00032876,7]
[331702319,1720663841247,-541.57,0.00032876,7]
[331702320,1720663841256,-500.0,0.00032876,7]
[331702321,1720663841266,-1066.18,0.00032876,7]
[331702322,1720663841275,-181.86153676,0.00032876,7]
[331702323,1720663841284,-507.59917498,0.00032876,7]
[331702324,1720663841293,-500.0,0.00032876,7]
[331702325,1720663841302,-629.61,0.00032876,7]
[331702326,1720663841312,-600.0,0.00032876,7]
[331702327,1720663841321,-498.2291867,0.00032876,7]
[331702328,1720663841330,-248.73343512,0.00032876,7]
[331702329,1720663841340,-530.4203538,0.00032876,7]
[331702330,1720663841349,-501.37482477,0.00032876,7]
[331702331,1720663841358,-500.0,0.00032876,7]
[331702332,1720663841367,-2742.43,0.00032876,7]
[331702333,1720663841376,-500.0,0.00032876,7]
[331702334,1720663841387,-1519.17,0.00032876,7]
[331702335,1720663841395,-500.0,0.00032876,7]
[331702336,1720663841404,-1003.12,0.00032876,2]
[331702337,1720663841413,-502.13374575,0.00032876,7]
[331702338,1720663841422,-555.99480381,0.00032876,7]
[331702339,1720663841431,-500.0,0.00032876,7]
[331702340,1720663841441,-285.92165846,0.00032876,7]
[331702341,1720663841450,-500.0,0.00032876,7]
[331702342,1720663841459,-500.0,0.00032876,7]
[331702343,1720663841470,-500.0,0.00032876,7]
[331702344,1720663841481,-500.0,0.00032876,7]
[331702345,1720663841491,-496.17477427,0.00032876,7]
[331702346,1720663841500,-2704.21,0.00032876,7]
[331702347,1720663841509,-1443.01,0.00032876,7]
[331702348,1720663841519,-6641.28,0.00032876,7]
[331702349,1720663841528,-679.86,0.00032876,7]
[331702350,1720663841537,-893.82,0.00032876,7]
[331702351,1720663841546,-500.0,0.00032876,7]
[331702352,1720663841555,-158.6616312,0.00032876,7]
[331702353,1720663841564,-504.24105807,0.00032876,7]
[331702354,1720663841574,-248.13234264,0.00032876,7]
[331702355,1720663841583,-500.0,0.00032876,7]
[331702356,1720663841592,-585.28300967,0.00032876,2]
[331702357,1720663841601,-550.28096999,0.00032876,7]
[331702358,1720663841610,-505.84872366,0.00032876,7]
[331702359,1720663841619,-556.49,0.00032876,7]
[331702360,1720663841630,-500.0,0.00032876,7]
[331702361,1720663841640,-170.39922346,0.00032876,7]
[331702362,1720663841649,-500.0,0.00032876,7]
[331702363,1720663841659,-500.0,0.00032876,7]
[331702364,1720663841670,-543.85894791,0.00032876,2]
[331702365,1720663841679,-1398.75,0.00032876,4]
[331702366,1720663841687,-153.0,0.00032959,2]
[331702367,1720663841696,-153.0,0.00032959,2]
[331702368,1720663841705,-153.0,0.00032959,2]
[331702369,1720663841715,-292.0,0.00033,2]
[331702370,1720663841724,-6189.70246104,0.0003305,2]
[331702371,1720663841733,-260.698669,0.0003313,2]
[331702372,1720663841742,-157.66554795,0.00033147,7]
[331702373,1720663841751,-500.0,0.0003315,7]
[331702374,1720663841760,-500.0,0.0003315,7]
[331702375,1720663841770,-500.0,0.0003315,7]
[331702376,1720663841779,-500.0,0.0003315,7]
[331702377,1720663841790,-500.0,0.0003315,7]
[331702378,1720663841800,-500.0,0.0003315,7]
[331702379,1720663841810,-561.46,0.0003315,7]
[331702380,1720663841819,-573.56082225,0.0003315,7]
[331702381,1720663841828,-500.0,0.0003315,7]
[331702382,1720663841837,-500.0,0.0003315,7]
[331702383,1720663841846,-500.0,0.0003315,7]
[331702384,1720663841855,-500.0,0.0003315,7]
[331702385,1720663841864,-542.31,0.0003315,7]
[331702386,1720663841874,-474.93921109,0.0003315,7]
[331702387,1720663841883,-500.0,0.0003315,7]
[331702388,1720663841893,-504.55016843,0.0003315,7]
[331702389,1720663841902,-500.0,0.0003315,2]
[331702390,1720663841911,-500.0,0.0003315,7]
[331702391,1720663841920,-500.0,0.0003315,7]
[331702392,1720663841929,-500.0,0.0003315,7]
[331702393,1720663841938,-796.07,0.0003315,7]
[331702394,1720663841947,-663.8,0.0003315,7]
[331702395,1720663841959,-500.0,0.0003315,7]
[331702396,1720663841968,-640.0,0.0003315,7]
[331702397,1720663841977,-380.63778886,0.0003315,7]
[331702398,1720663841987,-991.21,0.0003315,7]
[331702399,1720663841997,-878.44,0.0003315,7]
[331702400,1720663842008,-1559.3,0.0003315,7]
[331702401,1720663842017,-500.0,0.0003315,7]
[331702402,1720663842027,-3721.14,0.0003315,7]
[331702403,1720663842036,-531.09,0.0003315,7]
[331702404,1720663842046,-421.27826806,0.0003315,7]
[331702405,1720663842056,-591.11,0.0003315,7]
[331702406,1720663842065,-500.0,0.0003315,7]
[331702407,1720663842075,-550.16,0.0003315,7]
[331702408,1720663842086,-500.0,0.0003315,7]
[331702409,1720663842095,-500.0,0.0003315,7]
[331702410,1720663842106,-787.63,0.0003315,7]
[331702411,1720663842115,-541.57,0.0003315,7]
[331702412,1720663842125,-500.0,0.0003315,7]
[331702413,1720663842136,-1066.18,0.0003315,7]
[331702414,1720663842145,-581.21235626,0.0003315,7]
[331702415,1720663842155,-629.61,0.0003315,7]
[331702416,1720663842164,-500.0,0.0003315,7]
[331702417,1720663842173,-2742.43,0.0003315,7]
[331702418,1720663842182,-500.0,0.0003315,7]
[331702419,1720663842191,-1519.17,0.0003315,7]
[331702420,1720663842201,-500.0,0.0003315,7]
[331702421,1720663842210,-1003.12,0.0003315,2]
[331702422,1720663842220,-500.0,0.0003315,7]
[331702423,1720663842229,-500.0,0.0003315,7]
[331702424,1720663842238,-500.0,0.0003315,7]
[331702425,1720663842248,-240.35979658,0.0003315,7]
[331702426,1720663842258,-489.30334911,0.0003315,7]
[331702427,1720663842267,-2704.21,0.0003315,7]
[331702428,1720663842277,-1443.01,0.0003315,7]
[331702429,1720663842286,-6641.28,0.0003315,7]
[331702430,1720663842295,-679.86,0.0003315,7]
[331702431,1720663842305,-893.82,0.0003315,7]
[331702432,1720663842314,-500.0,0.0003315,7]
[331702433,1720663842324,-500.0,0.0003315,7]
[331702434,1720663842333,-556.49,0.0003315,7]
[331702435,1720663842343,-348.67485687,0.0003315,7]
[331702436,1720663842352,-500.0,0.0003315,7]
[331702437,1720663842361,-500.0,0.0003315,7]
[331702438,1720663842371,-1398.75,0.0003315,4]
[331702439,1720663842382,-150.39830691,0.00033152,7]
[331702440,1720663842393,-544.23823273,0.00033256,7]
[331702441,1720663842402,-300.0,0.0003327,2]
[331702442,1720663842412,-151.0,0.00033277,5]
[331702443,1720663842421,-1037.449454,0.00033294,2]
[331702444,1720663842430,-408.070339,0.00033295,2]
[331702445,1720663842438,-1329.0772232,0.00033298,33]
[331702446,1720663842447,-544.23823273,0.00033313,7]
[331702447,1720663842456,-1212.69494088,0.00033339,2]
[331702448,1720663842465,-301.44757931,0.00033369,2]
[331702449,1720663842475,-150.0,0.00033383,4]
[331702450,1720663842489,-469.84587989,0.00033424,7]
[331702451,1720663842498,-500.0,0.00033424,7]
[331702452,1720663842507,-500.0,0.00033424,7]
[331702453,1720663842516,-500.0,0.00033424,7]
[331702454,1720663842525,-500.0,0.00033424,7]
[331702455,1720663842534,-500.0,0.00033424,7]
[331702456,1720663842543,-561.46,0.00033424,7]
[331702457,1720663842552,-500.0,0.00033424,7]
[331702458,1720663842561,-500.0,0.00033424,7]
[331702459,1720663842569,-500.0,0.00033424,7]
[331702460,1720663842578,-500.0,0.00033424,7]
[331702461,1720663842588,-542.31,0.00033424,7]
[331702462,1720663842596,-500.0,0.00033424,7]
[331702463,1720663842605,-500.0,0.00033424,2]
[331702464,1720663842614,-500.0,0.00033424,7]
[331702465,1720663842623,-500.0,0.00033424,7]
[331702466,1720663842633,-511.65017843,0.00033424,7]
[331702467,1720663842642,-796.07,0.00033424,7]
[331702468,1720663842651,-663.8,0.00033424,7]
[331702469,1720663842661,-500.0,0.00033424,7]
[331702470,1720663842675,-991.21,0.00033424,7]
[331702471,1720663842684,-878.44,0.00033424,7]
[331702472,1720663842693,-1559.3,0.00033424,7]
[331702473,1720663842703,-500.0,0.00033424,7]
[331702474,1720663842713,-3721.14,0.00033424,7]
[331702475,1720663842722,-531.09,0.00033424,7]
[331702476,1720663842731,-591.11,0.00033424,7]
[331702477,1720663842740,-500.0,0.00033424,7]
[331702478,1720663842750,-550.16,0.00033424,7]
[331702479,1720663842760,-500.0,0.00033424,7]
[331702480,1720663842769,-500.0,0.00033424,7]
[331702481,1720663842779,-787.63,0.00033424,7]
[331702482,1720663842788,-541.57,0.00033424,7]
[331702483,1720663842798,-500.0,0.00033424,7]
[331702484,1720663842807,-1066.18,0.00033424,7]
[331702485,1720663842817,-629.61,0.00033424,7]
[331702486,1720663842827,-500.0,0.00033424,7]
[331702487,1720663842836,-2742.43,0.00033424,7]
[331702488,1720663842845,-500.0,0.00033424,7]
[331702489,1720663842854,-1519.17,0.00033424,7]
[331702490,1720663842864,-500.0,0.00033424,7]
[331702491,1720663842873,-1003.12,0.00033424,2]
[331702492,1720663842884,-500.0,0.00033424,7]
[331702493,1720663842893,-508.75326275,0.00033424,7]
[331702494,1720663842902,-500.0,0.00033424,7]
[331702495,1720663842911,-2704.21,0.00033424,7]
[331702496,1720663842921,-1443.01,0.00033424,7]
[331702497,1720663842931,-6641.28,0.00033424,7]
[331702498,1720663842940,-679.86,0.00033424,7]
[331702499,1720663842950,-893.82,0.00033424,7]
[331702500,1720663842959,-500.0,0.00033424,7]
[331702501,1720663842968,-500.0,0.00033424,7]
[331702502,1720663842978,-556.49,0.00033424,7]
[331702503,1720663842987,-500.0,0.00033424,7]
[331702504,1720663842997,-500.0,0.00033424,7]
[331702505,1720663843007,-1398.75,0.00033424,4]
[331702506,1720663843016,-171.18851748,0.00033433,2]
[331702507,1720663843025,-157.66554795,0.00033449,7]
[331702508,1720663843036,-157.66554795,0.0003345,7]
[331702509,1720663843045,-544.23823273,0.00033456,7]
[331702510,1720663843055,-46213.42261351,0.000335,2]
[331702511,1720663843064,-84131.12341398,0.000335,2]
[331702513,1720663843090,-50215.88292795,0.000335,2]
[331702518,1720663843140,428.44271624,0.00022941,2]
[331702585,1720663845552,2593.07555969,0.00022941,2]
[331702594,1720663847168,-10588.8376518,0.00029793,2]
[331702595,1720663847178,-500.0,0.00032876,7]
[331702597,1720663847187,-500.0,0.00032876,7]
[331702599,1720663847197,-153.0,0.00032959,2]
[331702600,1720663847206,-500.0,0.0003315,7]
[331702601,1720663847216,-438.0,0.000335,2]
[331702602,1720663847225,-108194.48362865,0.000335,2]
[331702603,1720663847234,-500.0,0.000335,2]
[331702604,1720663847243,-162.0,0.000335,25]
[331702605,1720663847252,-188.0,0.000335,6]
[331702606,1720663847261,-15759.84638457,0.000335,2]
[331702607,1720663847270,-5612.49349945,0.000335,4]
[331702608,1720663847279,-189.26423783,0.000335,4]
[331702609,1720663847288,-284.63680701,0.000335,3]
[331702610,1720663847297,-151.0,0.000335,7]
[331702611,1720663847306,-151.0,0.000335,7]
[331702612,1720663847315,-151.0,0.000335,7]
[331702613,1720663847324,-358.827406,0.000335,7]
[331702614,1720663847332,-358.827406,0.000335,7]
[331702615,1720663847341,-151.0,0.000335,7]
[331702616,1720663847350,-9017.66080095,0.000335,10]
[331702633,1720664851113,-391.995269,0.00021096,2]
[331702634,1720664851135,-204.03518,0.00021096,2]
[331702635,1720664851155,-664.64,0.00023,2]
[331702636,1720664851176,-3000.0,0.00024318,2]
[331702637,1720664851197,-160.445735,0.00024587,2]
[331702638,1720664851218,-300.0,0.000255,2]
[331702639,1720664851242,-4392.9002417,0.00025501,2]
[331702677,1720665038741,-250.0,0.00024593,2]
[331702679,1720665038751,-260.6986708,0.00024963,2]
[331702681,1720665038761,-300.0,0.000255,2]
[331702683,1720665038770,-275.02834948,0.00025501,2]
[331702685,1720665038780,-189.30856144,0.00025501,2]
[331702687,1720665038790,-2000.0,0.00025501,2]
[331702688,1720665038800,-429.99633819,0.00025501,2]
[331702689,1720665038810,-16324.80406636,0.00025501,2]
[331702690,1720665038820,-47757.95160868,0.00025501,2]
[331702691,1720665038830,-30000.0,0.00025501,2]
[331702692,1720665038839,-920.19989762,0.00025501,2]
[331702693,1720665038851,-24900.0,0.00026289,2]
[331702694,1720665038862,-1042.97057686,0.00026848,2]
[331702695,1720665038872,-65224.2306453,0.00027174,3]
[331702696,1720665038882,-391.995269,0.00027195,2]
[331702697,1720665038892,-166.563049,0.00027397,120]
[331702698,1720665038901,-163.229186,0.00028612,2]
[331702699,1720665038911,-1000.0,0.00029,2]
[331702700,1720665038921,-2000.0,0.00029703,2]
[331702701,1720665038931,-171.48721802,0.00029772,2]
[331702702,1720665038940,-2475.88098444,0.00029779,2]
[331702703,1720665038950,-612.3769053,0.00029803,2]
[331702704,1720665038961,-308.57307675,0.00029879,2]
[331702705,1720665038971,-532.50847481,0.00029903,2]
[331702706,1720665038980,-155.45465387,0.00029904,2]
[331702707,1720665038990,-491.45116219,0.00029904,2]
[331702708,1720665039000,-4373.08559011,0.00029977,5]
[331702709,1720665039010,-167.68652899,0.00029977,2]
[331702710,1720665039020,-500.0,0.00029977,2]
[331702711,1720665039030,-500.0,0.00029977,2]
[331702712,1720665039040,-500.0,0.00029977,2]
[331702713,1720665039049,-500.0,0.00029977,2]
[331702714,1720665039059,-500.0,0.00029977,2]
[331702715,1720665039069,-500.0,0.00029977,2]
[331702716,1720665039079,-500.0,0.00029977,2]
[331702717,1720665039089,-500.0,0.00029977,2]
[331702718,1720665039099,-500.0,0.00029977,2]
[331702719,1720665039108,-500.0,0.00029977,2]
[331702720,1720665039118,-500.0,0.00029977,2]
[331702721,1720665039128,-500.0,0.00029977,2]
[331702722,1720665039138,-500.0,0.00029977,2]
[331702723,1720665039148,-500.0,0.00029977,2]
[331702724,1720665039158,-500.0,0.00029977,2]
[331702725,1720665039167,-500.0,0.00029977,2]
[331702726,1720665039176,-500.0,0.00029977,2]
[331702727,1720665039186,-500.0,0.00029977,2]
[331702728,1720665039196,-500.0,0.00029977,2]
[331702729,1720665039206,-500.0,0.00029977,2]
[331702730,1720665039216,-500.0,0.00029977,2]
[331702731,1720665039226,-500.0,0.00029977,2]
[331702732,1720665039236,-500.0,0.00029977,2]
[331702733,1720665039246,-500.0,0.00029977,2]
[331702734,1720665039255,-500.0,0.00029977,2]
[331702735,1720665039264,-500.0,0.00029977,2]
[331702736,1720665039274,-500.0,0.00029977,2]
[331702737,1720665039284,-500.0,0.00029977,2]
[331702738,1720665039294,-500.0,0.00029977,2]
[331702739,1720665039303,-500.0,0.00029977,2]
[331702740,1720665039314,-500.0,0.00029977,2]
[331702741,1720665039324,-500.0,0.00029977,2]
[331702742,1720665039334,-500.0,0.00029977,2]
[331702743,1720665039344,-500.0,0.00029977,2]
[331702744,1720665039354,-500.0,0.00029977,2]
[331702745,1720665039363,-500.0,0.00029977,2]
[331702746,1720665039373,-500.0,0.00029977,2]
[331702747,1720665039383,-500.0,0.00029977,2]
[331702748,1720665039393,-500.0,0.00029977,2]
[331702749,1720665039402,-500.0,0.00029977,2]
[331702750,1720665039412,-500.0,0.00029977,2]
[331702751,1720665039423,-500.0,0.00029977,2]
[331702752,1720665039432,-500.0,0.00029977,2]
[331702753,1720665039442,-500.0,0.00029977,2]
[331702754,1720665039452,-500.0,0.00029977,2]